Cogmind - Beta 12 @@@ ROGUE MODE // 2023.03.18 @ 16:13:53 Player: Lunatic Blue Result: Destroyed by S-10 Pest with Light Assault Rifle Performance ------------- Evolutions (0) 0 Regions Visited (4) 800 Robots Destroyed (16) 80 Value Destroyed (498) 498 Prototype IDs (23) 460 Alien Tech Used (0) 0 Bonus (171) 171 TOTAL SCORE: 2009 Bonus ------- Follower Combat Kills 35 Aligned with FarCom 300 Friendly Fire -164 Cogmind --------- Core Integrity 0/250 Matter 286/300 Energy 265/265 System Corruption 0% Temperature Warm (120) Movement Treading (480) Ox4 Location -9/Mines Parts ------- > --- POWER (1) -------- Reinforced Ion Engine > --- PROPULSION (2) --- Light Treads Wheel > --- UTILITY (2) ------ Huge Storage Unit Improved Light Armor Plating > --- WEAPON (2) ------- Particle Gun Light Assault Rifle > --- INVENTORY (25) --- Ion Engine Light Ion Engine Light Nuclear Core Light Treads Light Treads Light Treads Light Treads Compact Wheel Compact Wheel Improved Heat Sink High-capacity Battery (250) Structural Scanner Sensor Array Seismic Detector Launcher Guidance Computer ECM Suite Light Armor Plating Light Armor Plating EM Pulse Gun Particle Gun Mining Laser Hammer Peak State ------------ > --- POWER ------------ Ion Engine > --- PROPULSION ------- Light Treads Wheel > --- UTILITY ---------- Huge Storage Unit Seismic Detector > --- WEAPON ----------- Medium Laser Particle Gun > --- INVENTORY -------- Light Ion Engine Light Treads Light Treads Light Treads Wheel Compact Wheel Compact Wheel Flying Fortress v7 Improved Heat Sink High-capacity Battery Superbattery Structural Scanner Sensor Array Seismic Detector Launcher Guidance Computer ECM Suite Improved Light Armor Plating EM Pulse Gun Guided Plasma Cannon Light Assault Rifle Grenade Launcher Mining Laser [Rating: 15] Favorites ----------- Power Ion Engine Engine Ion Engine Propulsion Light Treads Treads Light Treads Leg Aluminum Leg Wheel Wheel Utility Huge Storage Unit Device Seismic Detector Storage Huge Storage Unit Protection Improved Light Armor Plating Weapon Medium Laser Energy Gun Medium Laser Ballistic Gun Light Assault Rifle Launcher Grenade Launcher Build | -11 -10 -10 -10 -9 ------- Run | Jun Mat Min Exi Min Slots Evolved . | . . . . . Power . | . . . . . Propulsion . | . . . . . Utility . | . . . . . Weapon . | . . . . . Parts Attached 31 | . 5 8 4 14 Power 3 | . . . . 3 Engine 3 | . . . . 3 Core . | . . . . . Reactor . | . . . . . Propulsion 4 | . 2 . 1 1 Treads 2 | . 1 . . 1 Leg . | . . . . . Wheel 2 | . 1 . 1 . Hover . | . . . . . Flight . | . . . . . Utility 10 | . 2 4 . 4 Device 5 | . 1 2 . 2 Storage 1 | . 1 . . . Processor . | . . . . . Hackware . | . . . . . Protection 4 | . . 2 . 2 Artifact . | . . . . . Weapon 14 | . 1 4 3 6 Energy Gun 7 | . 1 3 1 2 Energy Cannon . | . . . . . Ballistic Gun 4 | . . . 1 3 Ballistic Cannon . | . . . . . Launcher 3 | . . 1 1 1 Special Weapon . | . . . . . Impact Weapon . | . . . . . Slashing Weapon . | . . . . . Piercing Weapon . | . . . . . Special Melee Weapon . | . . . . . Unidentified Prototypes . | . . . . . Parts Lost 7 | . . . 3 4 Power 1 | . . . 1 . Propulsion 2 | . . . 1 1 Utility 1 | . . . 1 . Weapon 3 | . . . . 3 Highest Loss Streak 3 | . . . 3 2 To Critical Strikes . | . . . . . Average Slot Usage (%) 98 | . 88 99 99 99 Engine 13 | . 14 14 13 14 Treads 13 | . 12 14 14 14 Wheel 13 | . 12 14 14 14 Device 11 | . 3 13 14 10 Storage 14 | . 14 14 14 14 Protection 1 | . . . . 3 Energy Gun 22 | . 14 26 25 10 Ballistic Gun 5 | . 14 . 1 17 Naked Turns . | . . . . . Heaviest Build 95 | 13 89 93 91 95 Greatest Support 20 | 20 20 10 10 10 Greatest Overweight (x) 9 | . 8 9 9 9 Average Overweight (x) 8 | . 6 8 8 8 Largest Inventory Capacity 25 | . 25 25 25 25 Average Capacity 24 | . 22 25 25 25 Most Carried 25 | . 10 20 25 22 Average Carried 16 | . 6 17 20 18 Final Capacity 25 | 8 25 25 25 25 Final Carried 22 | 6 10 20 19 22 Class Distribution -------------------- 94% | Mutant 5% | Scavenger-Mutant Dominant Class ---------------- Mutant | -10/Materials Mutant | -10/Mines Mutant | -10/Exiles Mutant | -9/Mines Resources | -11 -10 -10 -10 -9 ----------- Run | Jun Mat Min Exi Min Matter Collected 628 | 200 37 122 . 269 Remotely . | . . . . . Salvage Created 568 | . 37 195 7 329 Parts 33 | . 4 13 . 16 Haulers Intercepted . | . . . . . Recyclers Shooed 1 | . . . . 1 Parts Field Recycled . | . . . . . Retrieved Matter . | . . . . . Parts Self-Destructed . | . . . . . Prevented . | . . . . . Kills | -11 -10 -10 -10 -9 ------- Run | Jun Mat Min Exi Min Combat Hostiles Destroyed 22 | . . 8 5 9 Guns 11 | . . 4 . 7 AOE 11 | . . 4 5 2 Classes Destroyed 5 | . 1 3 . 1 Tunneler 1 | . . 1 . . Watcher 2 | . 2 . . . Grunt 12 | . . 4 . 8 Brawler 1 | . . . . 1 Assembled 10 | . . 5 5 . Best Kill Streak 5 | . 2 4 5 3 Combat Bots Only 5 | . . 4 5 3 Max Kills in Single Turn 4 | . 1 4 3 1 Gunslinging . | . . . . . Exploded 3 | . . 3 3 1 Melee . | . . . . . Uniques/NPCs Destroyed . | . . . . . Combat | -11 -10 -10 -10 -9 -------- Run | Jun Mat Min Exi Min Damage Taken 1126 | . . 209 277 640 Core 255 | . . 19 70 166 Absorbed by Shields . | . . . . . Core Remaining (%) 100 | 100 . . . . Volleys Fired 70 | . 2 15 17 36 Largest 2 | . 2 2 2 2 Hottest 115 | . 70 115 115 115 Shots Fired 119 | . 4 28 18 69 Gun 110 | . 4 26 13 67 Cannon . | . . . . . Launcher 9 | . . 2 5 2 Special . | . . . . . Kinetic 72 | . 2 7 11 52 Thermal 38 | . 2 19 2 15 Explosive 9 | . . 2 5 2 Electromagnetic . | . . . . . Robot Hit Streak 10 | . 2 10 . 9 Robot Miss Streak 3 | . . 2 1 3 Penetration Max . | . . . . . Secondary Targets 1 | . . . . 1 Max Gunslinging Chain 1 | . . . . 1 Shots Hit Robots 66 | . 2 17 . 47 Core Hits 61 | . 3 19 13 26 Critical Kills . | . . . . . Critical Parts Destroyed . | . . . . . Critical Strikes . | . . . . . Melee Attacks . | . . . . . Impact . | . . . . . Slashing . | . . . . . Piercing . | . . . . . Sneak Attacks . | . . . . . Combat Hostiles . | . . . . . Follow-up Attacks . | . . . . . Damage Inflicted 1371 | . 32 393 326 620 Guns 682 | . 32 202 8 440 Cannons . | . . . . . Explosions 689 | . . 191 318 180 Melee . | . . . . . Ramming . | . . . . . Kinetic 337 | . 7 40 8 282 Thermal 345 | . 25 162 . 158 Explosive 689 | . . 191 318 180 Electromagnetic . | . . . . . Impact . | . . . . . Slashing . | . . . . . Piercing . | . . . . . Highest Corruption . | . . . . . Average Corruption . | . . . . . Corruption Purged . | . . . . . Corruption Blocked . | . . . . . Overload Shots . | . . . . . Overflow Damage 9 | . . . . 9 Projectiles . | . . . . . Explosions 9 | . . . . 9 Melee . | . . . . . Knockbacks . | . . . . . Impact . | . . . . . Kinetic . | . . . . . Secondary . | . . . . . Self-Inflicted Damage 61 | . . 8 . 53 Shots 3 | . . 1 . 2 Rammed . | . . . . . Targets Rammed . | . . . . . Kicked . | . . . . . Crushed . | . . . . . Highest Temperature 360 | . 30 135 54 360 Average Temperature 83 | . 18 43 31 114 Received Heat Transfer 363 | . . 81 . 282 Siege Activations . | . . . . . Robots Corrupted . | . . . . . Combat Hostiles . | . . . . . Parts Fried . | . . . . . Impact Corruptions . | . . . . . Robots Melted . | . . . . . Combat Hostiles . | . . . . . Parts Melted 2 | . . 1 . 1 Heat Transferred 925 | . 74 444 . 407 Parts Sabotaged . | . . . . . Parts Stolen . | . . . . . Parts Stripped . | . . . . . Power Chain Reactions . | . . . . . Missiles Intercepted . | . . . . . Alert | -11 -10 -10 -10 -9 ------- Run | Jun Mat Min Exi Min Peak Influence 163 | . 48 97 . 163 Initial 18 | . . 18 . . Average 26 | . 21 24 . 35 Maximum Alert Level . | . . . . . Low Security (%) 100 | . 100 100 . 100 Level 1 . | . . . . . Level 2 . | . . . . . Level 3 . | . . . . . Level 4 . | . . . . . Level 5 . | . . . . . High Security . | . . . . . Max Security . | . . . . . Squads Dispatched 1 | . 1 . . . Investigation 1 | . 1 . . . Extermination . | . . . . . Reinforcement . | . . . . . Assault . | . . . . . Garrison . | . . . . . Intercept . | . . . . . Searches Triggered . | . . . . . Construction Impeded . | . . . . . Haulers Reinforced . | . . . . . Active Scanning Responses . | . . . . . Cargo Convoy Interrupts . | . . . . . Stealth | -11 -10 -10 -10 -9 --------- Run | Jun Mat Min Exi Min Distress Signals . | . . . . . Communications Jammed . | . . . . . Distress Signals . | . . . . . Times Spotted 34 | . 2 12 7 13 Peak Tracking Total 9 | . 1 4 9 3 Tactical Retreats 1 | . . 1 . . Traps | -11 -10 -10 -10 -9 ------- Run | Jun Mat Min Exi Min Traps Triggered . | . . . . . Indirectly . | . . . . . Trap Hack Attempts . | . . . . . Triggered . | . . . . . Disarmed . | . . . . . Reprogrammed . | . . . . . Reused . | . . . . . Traps Extracted . | . . . . . Installed . | . . . . . Triggered . | . . . . . Machines | -11 -10 -10 -10 -9 ---------- Run | Jun Mat Min Exi Min Machines Disabled 5 | . . . 4 1 Max in Single Turn 1 | . . . 1 1 Machines Repaired . | . . . . . Machines Sabotaged . | . . . . . Overloaded Fab Kills . | . . . . . Hacking | -11 -10 -10 -10 -9 --------- Run | Jun Mat Min Exi Min Machines Accessed 5 | . 3 . 2 . Terminals 2 | . 2 . . . Fabricators . | . . . . . Repair Stations . | . . . . . Recycling Units 1 | . 1 . . . Scanalyzers . | . . . . . Garrison Access . | . . . . . Total Hacks 12 | . 10 . 2 . Successful 6 | . 4 . 2 . Failed 6 | . 6 . . . Catastrophic 2 | . 2 . . . Database Lockouts . | . . . . . Manual 6 | . 5 . 1 . Terminals 7 | . 7 . . . Fabricators . | . . . . . Repair Stations . | . . . . . Recycling Units 3 | . 3 . . . Scanalyzers . | . . . . . Garrison Access . | . . . . . Terminal Hacks 4 | . 2 . 2 . Record 1 | . . . 1 . Branch Access Points 1 | . 1 . . . Terminal Index 1 | . 1 . . . EX-Prototype ID Bank 1 | . . . 1 . Fabricator Hacks . | . . . . . Repair Station Hacks . | . . . . . Recycling Unit Hacks 1 | . 1 . . . Retrieve Components 1 | . 1 . . . Scanalyzer . | . . . . . Garrison Access Hacks . | . . . . . Unauthorized Hacks 1 | . 1 . . . Terminals 1 | . 1 . . . Operators 1 | . 1 . . . Fabricators . | . . . . . Repair Stations . | . . . . . Recycling Units . | . . . . . Scanalyzers . | . . . . . Garrison Access . | . . . . . Data Cores Recovered . | . . . . . Used . | . . . . . Hacking Detections 3 | . 3 . . . Full Trace Events 1 | . 1 . . . Feedback Events . | . . . . . Feedback Blocked . | . . . . . Robot Schematics Acquired . | . . . . . Robots Built . | . . . . . Authchips . | . . . . . Time . | . . . . . Total Robot Build Rating . | . . . . . Part Schematics Acquired . | . . . . . Parts Built . | . . . . . Authchips . | . . . . . Time . | . . . . . Total Part Build Rating . | . . . . . Parts Repaired . | . . . . . Time . | . . . . . Parts Recycled . | . . . . . Recycled Matter . | . . . . . Retrieved Matter . | . . . . . Retrieved Components . | . . . . . Parts Scanalyzed . | . . . . . Part Schematics Acquired . | . . . . . Parts Damaged . | . . . . . Bothacking | -11 -10 -10 -10 -9 ------------ Run | Jun Mat Min Exi Min Used RIF Installer . | . . . . . Robots Hacked . | . . . . . Non-combat . | . . . . . Combat . | . . . . . Robot Hacks Applied . | . . . . . Relay Couplers Released . | . . . . . Fabnet Peak Effective % . | . . . . . Robots Rewired . | . . . . . Allies Hacked . | . . . . . Hacks Repelled . | . . . . . Allies | -11 -10 -10 -10 -9 -------- Run | Jun Mat Min Exi Min Total Allies 4 | . . 4 . . Largest Group 4 | . . 4 1 . Highest-Rated Group 71 | . . 71 16 . Highest-Rated Ally 31 | . . 31 16 . Total Orders . | . . . . . Ally Attacks 29 | . . 26 3 . Total Damage 289 | . . 289 . . Kills 5 | . . 5 . . Allies Corrupted . | . . . . . Allies Melted . | . . . . . Intel | -11 -10 -10 -10 -9 ------- Run | Jun Mat Min Exi Min Robot Analysis Total . | . . . . . Derelict Logs Recovered 2 | . . 1 . 1 Drone Launches . | . . . . . Drone Recoveries . | . . . . . Exploration | -11 -10 -10 -10 -9 ------------- Run | Jun Mat Min Exi Min Turns Passed 3002 | . 308 1571 534 589 Spaces Moved 1312 | 1 159 697 229 226 Core . | . . . . . Treads . | . . . . . Legs 36 | 1 35 . . . Wheels 1276 | . 124 697 229 226 Hover . | . . . . . Flight . | . . . . . Fastest Speed 120 | 120 120 200 200 200 Average Speed 208 | 120 182 214 214 203 Slowest Speed 215 | 120 200 215 215 215 Overloaded Moves . | . . . . . Propulsion Burnouts . | . . . . . Robots Hopped . | . . . . . Cave-ins Triggered . | . . . . . Exploration Rate (%) 50 | 2 40 99 60 51 Regions Visited 4 Branch Regions 3 Pre-discovered Areas 2 | . . . 1 1 Known Exits Taken 1 | . 1 . . . Unknown Exits Taken 3 | 1 . 1 1 . Scrap Searched 2 | . . 1 . 1 Spaces Dug 9 | . . 9 . . Terrain Destroyed 30 | . . 14 13 3 Melee . | . . . . . Projectile . | . . . . . AOE 30 | . . 14 13 3 Terrain Rammed . | . . . . . Walls Destroyed . | . . . . . Machines Disabled . | . . . . . Actions | -11 -10 -10 -10 -9 --------- Run | Jun Mat Min Exi Min Total 1470 | . 174 745 259 292 Wait 23 | . . 14 . 9 Move 1308 | . 158 696 228 226 Hop . | . . . . . Pick Up 28 | . 6 10 5 7 Fast Attach 2 | . 2 . . . Attach 10 | . 2 1 1 6 Detach 1 | . . 1 . . Swap 19 | . 1 7 3 8 Drop 9 | . 3 1 5 . Fire 70 | . 2 15 17 36 Melee . | . . . . . Ram . | . . . . . Kick . | . . . . . Crush . | . . . . . Escape Stasis . | . . . . . Rewire . | . . . . . Trap . | . . . . . Miscellaneous . | . . . . . Route ------- -11/Junkyard -10/Materials (discovered 2 exits: *Min x2) -10/Mines (discovered 3 exits: [*Mat x2] / *Exi) -10/Exiles (discovered 2 exits: [*Min x2]) -9/Mines (discovered 1 exit: [*Mat]) History --------- Turn | Location | Event 1 | -11/Junkyard | Discovered new exit (range 0) 1 | -11/Junkyard | Entered Materials 219 | -10/Materials | Discovered new exit (range 12) 251 | -10/Materials | Identified exit to Mines 309 | -10/Materials | Entered Mines 310 | -10/Mines | Met a Derelict bent on vengeance 313 | -10/Mines | Build established: Mutant 442 | -10/Mines | Assisted by bots powering up and referring to "LRC-V3" 460 | -10/Mines | Assembled infested the area 528 | -10/Mines | Received a Mining Laser from a helpful Derelict 914 | -10/Mines | Discovered new exit (range 5) 988 | -10/Mines | Discovered new exit (range 8) 1869 | -10/Mines | Deemed a non-threat by the Exiles lab entrance 1869 | -10/Mines | Discovered new exit (range 5) 1880 | -10/Mines | Entered Exiles 1880 | -10/Exiles | Accompanied by 1 ally 1915 | -10/Exiles | Discovered new exit (range 15) 1939 | -10/Exiles | Met 8R-AWN 1971 | -10/Exiles | Met EX-HEX 2033 | -10/Exiles | Met EX-BIN 2072 | -10/Exiles | Aligned with FarCom system 2074 | -10/Exiles | Given EX-Vault access code 2123 | -10/Exiles | Opened EX-Vault 2138 | -10/Exiles | Found Flying Fortress v7 2146 | -10/Exiles | Found Superbattery 2160 | -10/Exiles | Found Gui. Plasma Cannon 2215 | -10/Exiles | Warned to stay clear of 0b10 Research branches 2277 | -10/Exiles | Met EX-DEC 2286 | -10/Exiles | Learned location of Zion (-6) 2343 | -10/Exiles | Attacked by the Exiles 2398 | -10/Exiles | Discovered new exit (range 10) 2414 | -10/Exiles | Entered Mines 2415 | -9/Mines | Learned location of Storage (-9) 2445 | -9/Mines | Lost 3 parts (1p1n1u) 2661 | -9/Mines | Core integrity fell below 50% 2667 | -9/Mines | Core integrity fell below 20% 2986 | -9/Mines | Discovered new exit (range 10) 3003 | -9/Mines | Destroyed by S-10 Pest with Light Assault Rifle Last Messages --------------- 02816_ Acquired Lgt. Armor Plating. 02819_ Acquired Hammer. 02820_ Acquired 35 matter. 02822_ R-06 Scavenger collects Sml. Laser. 02823_ Acquired 2 matter. 02827_ R-06 Scavenger collects Heat Sink. 02828_ Acquired 2 matter. 02829_ Lgt. Assault Rifle destroyed. 02831_ Acquired 1 matter. 02831_ B-36 Bruiser destroyed. 02832_ Acquired 10 matter. 02832_ G-34 Mercenary destroyed. 02832_ R-06 Scavenger collects Aluminum Leg. 02833_ Acquired 1 matter. 02835_ R-06 Scavenger collects Ion Engine. 02841_ Acquired Lgt. Treads. 02849_ Acquired Lgt. Armor Plating. 02864_ Acquired 10 matter. 02986_ EXIT=FOUND 02994_ Laser Drill disabled. Map ----- +----------------------------------------------------+ | ##?###???????# #?????????????????? | | ## ##?????# #### ##### #???????????? | | ##????## ##??## #???????????? | | ##????###?????# #######???????????? | | #????????????# #?????????????????? | | ## #???????????## ###???????????????? | | ##?????????????????# ####????????????? | | ##????????####?????# ##???????????? | | # ########## ##????## #???????????? | | # ## ##????## #???????????? | | ## =! ##????## #???????????? | | ?# %% #?????## ##???????????? | | ?## %/ % #??????## #???######???? | | ??######## #???????# ##### #???? | | ?????????#### ##???????## #???? | | ????????????## ###?????????# #### ##???? | | ?????????????# #?????####??# #?## ##???? | | ?????????????# #????## ### ##?# ##??? | | ????????????## ###### ##?## #??? | | ????????????# ##??# #?? | | ##### ####### ##???# #?? | | #?????# #????###### #?? | | #### #?????## ##########??# ##?? | | #### ############ s ???###??? | | ##### """ ""??????????? | | @s""" ""??????????? | | ############## #####s "" ""??????????? | | ??????????????????# #???# ????????? | | ???????????????????# #???# """ ???????? | | ???????????????????# #???# """ < #??????? | | ???????????????????# #???# """ #??????? | | ???????????????????# #???# #??????? | | ??????????????????? #???#####?######??????? | | ??????????????????? ?????????????????????? | | ??????????????????? ?????????????????????? | | ??????????????????? #?????????????????????? | | ??????????????????? #??????????????????????? | | ???????????????????#???????????????????????? | | ???????????????????????????????????????????? | | ???????????????????????????????????????????? | | ???????????????????????????????????????????? | | ???????????????????????????????????????????? | | ???????????????????????????????????????????? | | ???????????????????????????????????????????? | | ???????????????????????????????????????????? | | ???????????????????????????????????????????? | | ???????????????????????????????????????????? | | ???????????????????????????????????????????? | | ???????????????????????????????????????????? | | ???????????????????????????????????????????? | +----------------------------------------------------+ Best States ------------- Heat Dissipation 25 Energy Generation 12 Energy Capacity 265 Matter Stores 300 Matter Capacity 300 Sight Range 16 Terrain Scan Density 10 Armor Coverage 150 Evasion (%) 55 Recoil Reduction 1 Item Schematics ----------------- None Robot Schematics ------------------ None Fabricated ------------ Nothing Alien Tech Used ----------------- None Achievements -------------- None Challenges ------------ None Game ------ Seed ClaymoresWeightShearcannon Manual? 0 Play Time 00:17:34 Cumulative 236.8 hours Start 2023.03.18 @ 15:30:28 End 2023.03.18 @ 16:13:53 Sessions 1 Manual Loads 0 Difficulty Rogue Special Mode None Game No. 306 Rogue 306 Adventurer 0 Explorer 0 Win Type - Total 6 Types 1/1/3/0/0/0/1/0/0 Lore% 80 Gallery% 86 Achievement% 67 Wizard Run 0 Options --------- ASCII 0 Keyboard 0 Movement Numpad Keybinds 0 Fullscreen 1 Font 18/SmallcapsGlow Map View 76x50 Tactical HUD 1 Map Filters NONE Filters NONE Steam 1 RUN: 5053edd7-cbbc-4280-ac91-36c925029120